[Event "Klatovy Open-B 2024"]
[Site "Klatovy"]
[Date "2024.07.03"]
[Round "5.13"]
[White "Jelinek, Jan"]
[Black "Rudlof, Jan"]
[Result "0-1"]
[ECO "B18"]
[WhiteElo "1662"]
[BlackElo "1799"]
[Annotator "NA RC"]
[PlyCount "142"]
[EventDate "2024.06.21"]
[EventType "swiss"]
[EventCountry "CZE"]
[SourceTitle "playchess.com"]
[Source "ChessBase"]
[SourceQuality "1"]
[TimeControl "40/7200:0"]

1. e4 {[%emt 0:00:43]} c6 {[%emt 0:05:30]} 2. Nc3 {[%emt 0:00:44]} d5 {[%emt 0:00:17]} 3. d4 {[%emt 0:00:00]} dxe4 {[%emt 0:00:00]} 4. Nxe4 {[%emt 0:00:00]} Bf5 {[%emt 0:00:00]} 5. Ng3 {[%emt 0:00:00]} Bg6 {[%emt 0:00:00]} 6. Nf3 {[%emt 0:00:00]} Nd7 {[%emt 0:00:00]} 7. Bc4 {[%emt 0:00:00]} e6 {[%emt 0:00:00]} 8. O-O {[%emt 0:00:37]} Ngf6 {[%emt 0:00:00]} 9. Qe2 {[%emt 0:01:51]} Be7 {[%emt 0:03:46]} 10. c3 {[%emt 0:04:10]} O-O {[%emt 0:04:22]} 11. Bg5 {[%emt 0:14:18]} Nd5 {[%emt 0:19:32]} 12. Bxe7 {[%emt 0:04:36]} Qxe7 {[%emt 0:00:00]} 13. Bxd5 {[%emt 0:00:33]} cxd5 {[%emt 0:00:00]} 14. Qe3 {[%emt 0:02:48]} b5 {[%emt 0:22:09]} 15. Ng5 {[%emt 0:03:59]} h6 {[%emt 0:03:16]} 16. Nh3 {[%emt 0:00:01]} Rfe8 {[%emt 0:12:23]} 17. Rae1 {[%emt 0:16:41]} Qd6 {[%emt 0:01:25]} 18. f4 {[%emt 0:07:10]} f5 {[%emt 0:00:22]} 19. Qf3 {[%emt 0:00:57]} b4 {[%emt 0:04:04]} 20. Nh5 {[%emt 0:11:54]} bxc3 {[%emt 0:02:16]} 21. bxc3 {[%emt 0:00:00]} Rab8 {[%emt 0:10:35]} 22. Nf2 {[%emt 0:02:49]} Bxh5 {[%emt 0:07:22]} 23. Qxh5 {[%emt 0:00:32]} Qxf4 {[%emt 0:00:58]} 24. h3 {[%emt 0:06:56]} Qg5 {[%emt 0:01:27]} 25. Qf3 {[%emt 0:00:35]} Rb6 {[%emt 0:00:41]} 26. Re2 {[%emt 0:01:51]} Rc6 {[%emt 0:09:24]} 27. Re3 {[%emt 0:06:50]} Rec8 {[%emt 0:00:31]} 28. Rfe1 {[%emt 0:02:22]} Nf6 {[%emt 0:00:04]} 29. Kh2 {[%emt 0:05:36]} Ne4 {[%emt 0:00:00]} 30. Nd1 {[%emt 0:00:35]} h5 {[%emt 0:00:56]} 31. g3 {[%emt 0:00:13]} Rb8 {[%emt 0:00:24]} 32. Rg1 {[%emt 0:00:42]} Rbc8 {[%emt 0:00:45]} 33. Rg2 {[%emt 0:01:05]} Kh7 {[%emt 0:00:00]} 34. g4 {[%emt 0:00:00]} hxg4 {[%emt 0:01:47]} 35. hxg4 {[%emt 0:00:00]} Rh8 {[%emt 0:02:14]} 36. gxf5 {[%emt 0:02:28]} Kg8+ {[%emt 0:00:11]} 37. Kg1 {[%emt 0:00:00]} Qxf5 {[%emt 0:00:25]} 38. Qxf5 {[%emt 0:05:41]} exf5 {[%emt 0:00:00]} 39. Rf3 {[%emt 0:00:14]} Rh5 {[%emt 0:00:00]} 40. Kf1 {[%emt 0:00:00]} Kf7 {[%emt 0:00:30]} 41. Ke2 {[%emt 1:59:46]} Kf6 {[%emt 2:00:05]} 42. Kd3 {[%emt 0:01:02]} g5 {[%emt 0:00:00]} 43. Kc2 {[%emt 0:00:26]} Ra6 {[%emt 0:00:23]} 44. Kb3 {[%emt 0:00:00]} Rb6+ {[%emt 0:00:00]} 45. Ka4 {[%emt 0:00:00]} f4 {[%emt 0:00:17]} 46. Nf2 {[%emt 0:00:58]} Nxf2 {[%emt 0:00:00]} 47. Rgxf2 {[%emt 0:00:00]} Kf5 {[%emt 0:00:00]} 48. c4 {[%emt 0:00:25]} dxc4 {[%emt 0:00:00]} 49. Re2 {[%emt 0:00:19]} Rh7 {[%emt 0:00:23]} 50. Rc3 {[%emt 0:00:18]} Rhb7 {[%emt 0:00:00]} 51. Re5+ {[%emt 0:00:08]} Kg4 {[%emt 0:00:00]} 52. Ka5 {[%emt 0:00:52]} Rc6 {[%emt 0:00:05]} 53. Re1 {[%emt 0:01:10]} a6 {[%emt 0:00:16]} 54. Rd1 {[%emt 0:00:37]} Rb5+ {[%emt 0:00:00]} 55. Ka4 {[%emt 0:00:00]} Rd5 {[%emt 0:00:00]} 56. Rd2 {[%emt 0:00:00]} Kf5 {[%emt 0:00:00]} 57. Kb4 {[%emt 0:00:10]} g4 {[%emt 0:00:00]} 58. Rxc4 {[%emt 0:00:32]} Rb6+ {[%emt 0:00:00]} 59. Ka4 {[%emt 0:00:09]} Rbb5 {[%emt 0:00:00]} 60. Rdc2 {[%emt 0:00:24]} Ra5+ {[%emt 0:00:00]} 61. Kb3 {[%emt 0:00:00]} Rdb5+ {[%emt 0:00:00]} 62. Kc3 {[%emt 0:00:00]} g3 {[%emt 0:00:00]} 63. a4 {[%emt 0:00:00]} Rd5 {[%emt 0:00:00]} 64. Kd3 {[%emt 0:00:00]} Kg4 {[%emt 0:00:00]} 65. Ke4 {[%emt 0:00:00]} f3 {[%emt 0:00:00]} 66. Rc8 {[%emt 0:00:00]} g2 {[%emt 0:00:00]} 67. Rg8+ {[%emt 0:01:51]} Rg5 {[%emt 0:00:00]} 68. Rxg5+ {[%emt 0:01:22]} Rxg5 {[%emt 0:00:55]} 69. d5 {[%emt 0:00:00]} g1=Q {[%emt 0:00:00]} 70. Rc4 {[%emt 0:00:00]} Kg3 {[%emt 0:00:00]} 71. d6 {[%emt 0:00:00]} Qe1+ {[%emt 0:00:00]} 0-1

[Event "Klatovy Open-B 2024"]
[Site "Klatovy"]
[Date "2024.07.03"]
[Round "5.14"]
[White "Marko, Ondrej"]
[Black "Kasik, Denis"]
[Result "0-1"]
[ECO "D05"]
[WhiteElo "1786"]
[BlackElo "1596"]
[Annotator "NA RC"]
[PlyCount "78"]
[EventDate "2024.06.21"]
[EventType "swiss"]
[EventCountry "CZE"]
[SourceTitle "playchess.com"]
[Source "ChessBase"]
[SourceQuality "1"]
[TimeControl "40/7200:0"]

1. d4 {[%emt 0:00:00]} d5 {[%emt 0:00:00]} 2. Nf3 {[%emt 0:00:00]} Nf6 {[%emt 0:00:00]} 3. e3 {[%emt 0:00:00]} e6 {[%emt 0:00:00]} 4. Bd3 {[%emt 0:00:00]} Bd6 {[%emt 0:00:00]} 5. Nbd2 {[%emt 0:00:00]} O-O {[%emt 0:00:00]} 6. O-O {[%emt 0:00:00]} Nbd7 {[%emt 0:00:00]} 7. Re1 {[%emt 0:00:00]} c5 {[%emt 0:00:00]} 8. c3 {[%emt 0:00:00]} h6 {[%emt 0:02:45]} 9. e4 {[%emt 0:07:33]} dxe4 {[%emt 0:01:31]} 10. Nxe4 {[%emt 0:00:00]} Nxe4 {[%emt 0:00:00]} 11. Bxe4 {[%emt 0:00:00]} Nf6 {[%emt 0:01:08]} 12. Bc2 {[%emt 0:00:28]} b6 {[%emt 0:02:23]} 13. Ne5 {[%emt 0:14:40]} Bb7 {[%emt 0:03:28]} 14. f4 {[%emt 0:03:35]} Qc7 {[%emt 0:01:06]} 15. Re3 {[%emt 0:04:45]} cxd4 {[%emt 0:02:21]} 16. cxd4 {[%emt 0:00:46]} Rac8 {[%emt 0:09:34]} 17. Rc3 {[%emt 0:06:34]} Qb8 {[%emt 0:02:34]} 18. Rg3 {[%emt 0:04:22]} Qc7 {[%emt 0:04:03]} 19. Bd3 {[%emt 0:06:25]} Be4 {[%emt 0:06:17]} 20. Bxe4 {[%emt 0:22:04]} Nxe4 {[%emt 0:00:31]} 21. Re3 {[%emt 0:00:00]} Nf6 {[%emt 0:06:34]} 22. Qf3 {[%emt 0:09:16]} Qc2 {[%emt 0:05:24]} 23. g4 {[%emt 0:11:21]} Nd5 {[%emt 0:06:44]} 24. Rd3 {[%emt 0:01:58]} Rc7 {[%emt 0:08:28]} 25. Rd2 {[%emt 0:00:21]} Qa4 {[%emt 0:01:03]} 26. b3 {[%emt 0:01:43]} Qb4 {[%emt 0:00:34]} 27. Nc4 {[%emt 0:03:11]} Bxf4 {[%emt 0:04:07]} 28. Ba3 {[%emt 0:03:00]} Qb5 {[%emt 0:08:34]} 29. Bxf8 {[%emt 0:01:43]} Bxd2 {[%emt 0:02:09]} 30. Nxd2 {[%emt 0:00:00]} Kxf8 {[%emt 0:00:00]} 31. Rf1 {[%emt 0:00:28]} Qb4 {[%emt 0:03:37]} 32. Qf2 {[%emt 0:00:33]} Nf6 {[%emt 0:00:39]} 33. Qf4 {[%emt 0:01:57]} Nd5 {[%emt 0:06:41]} 34. Qf2 {[%emt 0:00:00]} Qc3 {[%emt 0:00:46]} 35. Nc4 {[%emt 0:01:24]} b5 {[%emt 0:00:23]} 36. Nd6 {[%emt 0:01:01]} Qe3 {[%emt 0:01:13]} 37. Nxb5 {[%emt 0:00:31]} Rc2 {[%emt 0:01:22]} 38. Qxe3 {[%emt 0:00:50]} Nxe3 {[%emt 0:00:00]} 39. Rf2 {[%emt 0:01:12]} Rc1+ {[%emt 0:00:00]} 0-1